bitfinex/quotes_SOLUSD_20240826
["timestamp","ask_amount","ask_price","bid_price","bid_amount"]
[1724694643713,20.0,156.55,156.51,45.0]
[1724694644085,6.3868,156.58,156.51,45.0]
[1724694644283,6.3868,156.58,156.52,6.3889]
[1724694644506,6.3861,156.59,156.54,6.388]
[1724694644805,6.3864,156.59,156.55,45.0]
[1724694645201,8.0678,156.61,156.54,60.9693]
[1724694645402,8.0678,156.61,156.57,6.3868]
[1724694645612,19.3842,156.66,156.59,6.386]
[1724694645988,19.3842,156.66,156.6,45.0]
[1724694646710,6.3838,156.65,156.6,45.0]
[1724694646898,19.3842,156.66,156.6,45.0]
[1724694647099,19.3842,156.66,156.57,6.3868]
[1724694647410,6.3861,156.59,156.53,15.9711]
[1724694647705,6.3857,156.6,156.54,51.388]
[1724694647905,6.3857,156.6,156.55,6.3876]
[1724694648107,19.3842,156.66,156.56,45.0]
[1724694648317,6.3849,156.62,156.56,6.3873]
[1724694648511,19.3842,156.66,156.57,51.3869]
[1724694648718,6.3844,156.63,156.57,51.3868]
[1724694649307,20.0,156.62,156.57,51.3868]
[1724694649894,20.0,156.62,156.57,45.0]
[1724694650099,19.3842,156.66,156.57,45.0]
[1724694650100,20.0,156.65,156.57,45.0]
[1724694650305,6.3857,156.6,156.56,45.0]
[1724694650496,6.3861,156.59,156.56,45.0]
[1724694650809,15.9618,156.63,156.52,15.9721]
[1724694651013,6.3861,156.59,156.53,6.3882]
[1724694651192,6.3856,156.61,156.52,15.9721]
[1724694651393,20.0,156.6,156.55,6.3876]
[1724694651910,26.3857,156.6,156.54,6.3881]
[1724694652116,26.3857,156.6,156.55,51.3876]
[1724694652911,20.0,156.6,156.55,51.3876]
[1724694653110,6.3849,156.62,156.57,6.3868]
[1724694653291,19.3842,156.66,156.58,51.3861]
[1724694653491,6.3841,156.64,156.59,6.386]
[1724694653693,6.3849,156.62,156.58,45.0]
[1724694654001,19.3842,156.66,156.59,15.9645]
[1724694654319,6.3835,156.66,156.6,51.3856]
[1724694654994,6.3836,156.65,156.6,45.0]
[1724694655829,6.3836,156.65,156.6,51.3856]
[1724694655999,6.3836,156.65,156.6,45.0]
[1724694656316,7.7299,156.67,156.6,45.0]
[1724694656317,6.3841,156.64,156.6,45.0]
[1724694656516,6.3845,156.63,156.6,45.0]
[1724694656716,6.3852,156.61,156.56,22.3549]
[1724694656908,15.9588,156.66,156.56,15.9678]
[1724694657116,6.3857,156.6,156.56,15.9678]
[1724694657327,15.9588,156.66,156.56,22.355]
[1724694657619,6.3849,156.62,156.56,22.355]
[1724694657998,6.3854,156.61,156.56,22.355]
[1724694659305,6.3849,156.62,156.56,22.355]
[1724694659516,47.8609,156.71,156.6,15.964]
[1724694659828,6.3833,156.66,156.61,45.0]
[1724694660034,6.3833,156.66,156.61,51.3852]
[1724694660248,8.3442,156.73,156.61,45.0]
[1724694660544,6.3812,156.71,156.65,15.9586]
[1724694660698,6.382,156.69,156.66,45.0]
[1724694660898,6.3824,156.68,156.66,45.0]
[1724694661206,6.3824,156.68,156.62,22.3468]
[1724694661404,6.3833,156.66,156.63,45.0]
[1724694661627,8.3442,156.73,156.63,51.384]
[1724694661806,6.3821,156.69,156.63,45.0]
[1724694662001,6.3821,156.69,156.62,45.0]
[1724694662323,20.0,156.72,156.62,45.0]
[1724694662526,15.9548,156.7,156.62,45.0]
[1724694662740,6.3844,156.63,156.58,15.9658]
[1724694662903,20.0,156.69,156.55,15.9689]
[1724694663105,20.0,156.69,156.52,15.9719]
[1724694663410,6.3853,156.61,156.55,6.3873]
[1724694663609,6.3858,156.6,156.55,6.3873]
[1724694663812,15.9609,156.64,156.54,15.9696]
[1724694664129,15.9609,156.64,156.53,6.3884]
[1724694664130,6.3865,156.58,156.53,6.3884]
[1724694664668,6.3865,156.58,156.52,6.3888]
[1724694664956,15.9609,156.64,156.56,6.387]
[1724694665134,20.0,156.63,156.56,6.387]
[1724694665339,6.3849,156.62,156.57,6.3866]
[1724694665539,6.3849,156.62,156.58,45.0]
[1724694665850,6.3845,156.63,156.58,51.3863]
[1724694666047,25.9871,156.65,156.58,45.0]
[1724694666258,25.9871,156.65,156.59,6.386]
[1724694666445,25.9871,156.65,156.6,45.0]
[1724694666650,6.384,156.64,156.6,45.0]
[1724694666951,397.2544,156.7,156.6,60.964]
[1724694667159,19.6032,156.72,156.6,60.964]
[1724694667538,6.3825,156.68,156.62,6.3847]
[1724694667849,6.3825,156.68,156.63,45.0]
[1724694668374,6.3825,156.68,156.63,51.3844]
[1724694668649,19.6032,156.72,156.63,51.3844]
[1724694668650,19.6032,156.72,156.63,45.0]
[1724694668856,19.6032,156.72,156.65,6.3835]
[1724694669037,19.6032,156.72,156.66,45.0]
[1724694669238,6.3819,156.7,156.66,45.0]
[1724694669439,6.3819,156.7,156.65,45.0]
[1724694669828,6.382,156.69,156.65,45.0]
[1724694670036,6.3817,156.7,156.65,51.3835]
[1724694670441,6.3817,156.7,156.65,45.0]
[1724694670748,6.3821,156.69,156.65,45.0]
[1724694670956,19.6032,156.72,156.65,51.3836]
[1724694670957,6.3816,156.7,156.65,51.3836]
[1724694671153,6.3812,156.71,156.66,6.383]
[1724694671349,6.3812,156.71,156.67,45.0]
[1724694671557,15.9471,156.77,156.65,51.3835]
[1724694671558,15.9471,156.77,156.66,15.9573]
[1724694671747,15.9495,156.75,156.67,45.0]
[1724694671953,20.0,156.74,156.67,45.0]
[1724694672273,6.3804,156.73,156.67,51.3826]
[1724694672435,6.38,156.74,156.69,6.3819]
[1724694672639,6.3801,156.74,156.7,45.0]
[1724694672867,696.4257,156.79,156.64,15.9599]
[1724694673040,20.0,156.77,156.65,45.0]
[1724694673247,15.9528,156.72,156.61,15.9627]
[1724694673451,15.9547,156.7,156.61,15.9627]
[1724694673651,6.3845,156.63,156.58,15.9658]
[1724694673855,6.3845,156.63,156.58,22.3522]
[1724694674378,6.3849,156.62,156.56,6.387]
[1724694674667,6.3849,156.62,156.55,15.9693]
[1724694674668,15.9588,156.66,156.55,15.9693]
[1724694674970,6.3856,156.61,156.55,22.3567]
[1724694675147,15.9609,156.64,156.52,15.972]
[1724694675466,6.3868,156.58,156.52,22.3608]
[1724694675648,15.963,156.62,156.48,15.9755]
[1724694675848,15.963,156.62,156.45,7.8431]
[1724694676049,397.2592,156.65,156.48,31.9509]
[1724694676240,20.0,156.64,156.48,31.9509]
[1724694676440,6.3857,156.6,156.55,6.3876]
[1724694676659,6.3857,156.6,156.56,1.27235984]
[1724694677470,6.3862,156.59,156.55,45.0]
[1724694678153,6.3857,156.6,156.55,45.0]
[1724694678558,6.3861,156.59,156.55,45.0]
[1724694678753,6.3861,156.59,156.54,45.0]
[1724694679360,15.9621,156.63,156.49,15.9753]
[1724694679669,20.0,156.62,156.52,6.3889]
[1724694679859,6.3862,156.59,156.53,6.3884]
[1724694680060,6.46471044,156.79,156.73,10.65259575]
[1724694680258,15.9212,157.03,156.9,6.3732]
[1724694680563,6.3703,156.98,156.89,15.9345]
[1724694680762,15.9212,157.03,156.9,45.0]
[1724694680953,15.9212,157.03,156.9,45.98392622]
[1724694681149,8.4712,157.05,156.9,45.98392622]
[1724694681352,6.3687,157.02,156.93,6.3721]
[1724694681550,20.0,157.02,156.9,45.0]
[1724694681755,20.0,157.02,156.91,1.27428459]
[1724694681756,7.1916549,156.95,156.91,1.27428459]
[1724694681964,0.8200549,156.95,156.91,1.27428459]
[1724694682562,7.1915549,156.95,156.9,45.0]
[1724694683070,0.8200549,156.95,156.91,1.27438987]
[1724694683572,7.1915549,156.95,156.91,1.27438987]
[1724694684664,6.3722,156.93,156.91,1.27438987]
[1724694686879,0.8200549,156.95,156.9,45.0]
[1724694686880,6.3719,156.94,156.9,45.0]
[1724694687478,6.3719,156.94,156.91,1.27377982]
[1724694687681,6.3719,156.94,156.9,45.0]
[1724694687977,6.3723,156.93,156.91,1.27408527]
[1724694688489,0.8200549,156.95,156.91,1.27408527]
[1724694688664,6.3719,156.94,156.91,1.27408527]
[1724694689182,0.8200549,156.95,156.91,6.373]
[1724694689368,0.8200549,156.95,156.92,45.0]
[1724694689965,0.8200549,156.95,156.91,45.0]
[1724694690186,0.8200549,156.95,156.9,45.0]
[1724694690378,7.1914549,156.95,156.9,45.0]
[1724694690693,0.8200549,156.95,156.89,51.3736]
[1724694691060,7.1915549,156.95,156.89,51.3736]
[1724694691691,0.8200549,156.95,156.89,45.0]
[1724694691998,7.1918549,156.95,156.9,1.27362677]
[1724694692283,7.1918549,156.95,156.89,51.3737]
[1724694693381,6.373,156.92,156.84,15.9389]
[1724694693568,0.8200549,156.95,156.84,15.9389]
[1724694694285,0.8200549,156.95,156.8,15.9437]
[1724694694463,15.9329,156.91,156.8,15.9437]
[1724694694662,0.8200549,156.95,156.8,15.9437]
[1724694694869,8.4883,156.94,156.8,15.9437]
[1724694695091,8.4883,156.94,156.76,88.43678474]
[1724694695092,20.0,156.93,156.76,72.48818474]
[1724694695288,6.3757,156.85,156.78,6.3779]
[1724694695679,6.3763,156.83,156.77,9.66456248]
[1724694695997,6.3763,156.83,156.76,22.3256]
[1724694695998,6.3767,156.82,156.76,6.3791]
[1724694696374,47.8036,156.9,156.76,15.9475]
[1724694696579,6.3763,156.84,156.77,6.3784]
[1724694696778,47.8036,156.9,156.77,6.3784]
[1724694696779,6.3765,156.83,156.77,6.3784]
[1724694697102,15.9346,156.9,156.76,62.82422226]
[1724694697402,6.3761,156.84,156.77,45.0]
[1724694697763,20.0,156.89,156.76,15.9475]
[1724694697764,15.9369,156.87,156.76,15.9475]
[1724694699373,15.9369,156.87,156.76,22.3266]
[1724694699374,6.3767,156.82,156.76,22.3266]
[1724694699769,6.3771,156.82,156.76,6.3791]
[1724694700485,20.0,156.89,156.73,78.77672226]
[1724694700673,35.9356,156.89,156.78,15.9459]
[1724694700872,6.3754,156.86,156.79,6.3775]
[1724694701172,20.0411,156.92,156.78,17.22069742]
[1724694701173,6.3746,156.88,156.81,15.942]
[1724694701383,6.3751,156.86,156.82,46.27459363]
[1724694701598,6.3751,156.86,156.83,1.27471393]
[1724694701886,20.0411,156.92,156.82,51.3767]
[1724694702070,20.0411,156.92,156.83,1.27422872]
[1724694702286,6.3746,156.88,156.82,51.3767]
[1724694702480,6.3759,156.84,156.82,45.0]
[1724694702704,6.3754,156.86,156.82,45.0]
[1724694702909,15.9335,156.91,156.81,45.0]
[1724694703093,20.0,156.9,156.81,45.0]
[1724694704395,6.3763,156.83,156.81,45.0]
[1724694705007,6.3759,156.84,156.81,45.0]
[1724694705202,6.3755,156.85,156.8,45.0]
[1724694705787,6.3759,156.84,156.8,45.0]
[1724694705999,6.3765,156.83,156.8,45.0]
[1724694706203,6.3765,156.83,156.77,22.3253]
[1724694706885,31.8697,156.89,156.74,15.9497]
[1724694707205,6.3775,156.8,156.74,22.3293]
[1724694708008,6.3792,156.76,156.71,15.9527]
[1724694708191,6.3792,156.76,156.71,22.3337]
[1724694708499,6.3788,156.77,156.71,22.3337]
[1724694709091,6.3788,156.77,156.72,6.3807]
[1724694709301,6.3784,156.78,156.73,6.3803]
[1724694709704,6.3789,156.77,156.71,22.3335]
[1724694710290,6.3789,156.77,156.72,45.0]
[1724694710505,6.3789,156.77,156.71,22.3335]
[1724694710708,15.9465,156.78,156.65,15.56327203]
[1724694710907,6.3811,156.72,156.66,6.383]
[1724694711086,6.3811,156.72,156.67,6.3827]
[1724694711705,6.3811,156.72,156.66,6.3831]
[1724694711896,6.3813,156.71,156.65,29.0145651]
[1724694712213,6.3808,156.72,156.66,6.3831]
[1724694712393,6.3804,156.73,156.67,6.3827]
[1724694713386,15.9462,156.78,156.67,6.3827]
[1724694713387,6.3808,156.72,156.67,6.3827]
[1724694713593,6.3812,156.71,156.66,6.3831]
[1724694713805,15.9486,156.76,156.65,29.0144651]
[1724694714123,20.0,156.75,156.65,22.3424]
[1724694714414,20.0,156.75,156.65,16.28155215]
[1724694714415,6.3809,156.72,156.65,16.28155215]
[1724694714605,6.3809,156.72,156.66,6.3831]
[1724694714907,6.3804,156.73,156.65,16.28151097]
[1724694715113,6.3804,156.73,156.67,6.3827]
[1724694715302,6.3804,156.73,156.68,45.0]
[1724694715917,6.381,156.72,156.68,45.0]
[1724694716199,6.3813,156.71,156.67,45.0]
[1724694716400,20.0,156.75,156.67,60.9564]
[1724694716608,20.0,156.75,156.62,77.68365756]
[1724694716609,15.9496,156.75,156.64,15.9599]
[1724694716814,6.3823,156.69,156.64,15.9599]
[1724694717195,6.3823,156.69,156.64,22.3439]
[1724694717608,6.3816,156.7,156.64,22.3439]
[1724694717795,6.3812,156.71,156.64,15.9599]
[1724694718003,6.3812,156.71,156.65,45.0]
[1724694718516,6.3808,156.72,156.66,15.9575]
[1724694718695,6.3808,156.72,156.67,45.0]
[1724694719110,6.3808,156.72,156.68,1.27598357]
[1724694719505,6.3813,156.71,156.67,45.0]
[1724694721116,6.3808,156.73,156.67,51.3827]
[1724694721416,15.9461,156.78,156.68,17.23113463]
[1724694721630,15.9461,156.78,156.69,45.0]
[1724694722143,6.3782,156.79,156.74,6.3799]
[1724694722410,6.3783,156.78,156.75,45.0]
[1724694722617,6.378,156.79,156.75,45.0]
[1724694723521,8.0845,156.81,156.75,60.9482]
[1724694723818,20.44,156.86,156.79,6.3779]
[1724694724018,20.44,156.86,156.8,45.0]
[1724694724399,20.44,156.86,156.79,45.0]
[1724694725509,6.3763,156.83,156.79,45.0]
[1724694726695,6.3763,156.83,156.8,1.27460885]
[1724694726902,6.3768,156.82,156.79,45.0]
[1724694727217,6.3768,156.82,156.78,45.0]
[1724694728201,6.3771,156.81,156.78,45.0]
[1724694728401,6.3771,156.81,156.77,45.0]
[1724694728797,6.3768,156.82,156.77,45.0]
[1724694729108,6.3764,156.83,156.77,45.0]
[1724694729299,6.3764,156.83,156.76,45.0]
[1724694729504,6.3764,156.83,156.78,6.3782]
[1724694729706,20.44,156.86,156.79,45.0]
[1724694729911,6.3756,156.85,156.79,45.0]
[1724694730124,6.3759,156.84,156.79,6.3778]
[1724694730321,6.3759,156.84,156.8,45.0]
[1724694731615,6.3771,156.81,156.77,15.9463]
[1724694731817,20.44,156.86,156.77,15.9463]
[1724694732023,6.377,156.82,156.77,15.9463]
[1724694732836,20.44,156.86,156.74,15.9498]
[1724694733138,6.3772,156.81,156.76,6.3791]
[1724694733839,6.3776,156.8,156.74,15.9498]
[1724694734540,6.3776,156.8,156.75,6.3792]
[1724694734715,6.3776,156.8,156.76,45.0]
[1724694735106,6.3771,156.81,156.76,51.3791]
[1724694736305,35.9394,156.85,156.76,45.0]
[1724694736525,20.0,156.85,156.75,45.0]
[1724694736729,51.8779,156.85,156.66,38.58147004]
[1724694736905,51.8779,156.85,156.67,4.86913743]
[1724694737107,51.8779,156.85,156.67,1.27555907]
[1724694737424,6.3796,156.75,156.7,6.3813]
[1724694737811,6.3792,156.76,156.71,6.3812]
[1724694738017,6.3788,156.77,156.72,6.3807]
[1724694738426,6.3791,156.76,156.72,6.3807]
[1724694738723,6.3791,156.76,156.71,6.3811]
[1724694739107,6.3791,156.76,156.72,1.2751521]
[1724694739309,6.3791,156.76,156.72,46.2751521]
[1724694740411,6.3791,156.76,156.72,45.0]
[1724694740810,6.3803,156.73,156.68,6.3823]
[1724694741032,8.4659,156.8,156.66,6.66587004]
[1724694741231,48.4659,156.8,156.6,7.9324]
[1724694741408,48.4659,156.8,156.61,6.66845435]
[1724694741409,45.0,156.79,156.61,6.66845435]
[1724694741604,21.2097,156.74,156.64,6.3839]
[1724694741805,6.3821,156.69,156.64,6.3839]
[1724694742012,6.3817,156.7,156.64,6.3839]
[1724694742525,6.3817,156.7,156.65,6.3834]
[1724694742727,6.382,156.69,156.64,6.3839]
[1724694743234,6.3824,156.68,156.63,22.3444]
[1724694743812,37.1602,156.74,156.63,15.9601]
[1724694744011,21.2097,156.74,156.66,15.958]
[1724694744211,27.59,156.74,156.68,6.382]
[1724694744413,6.3805,156.73,156.67,6.3827]
[1724694744623,6.3816,156.7,156.68,45.0]
[1724694744910,6.3816,156.7,156.67,45.0]
[1724694745429,6.382,156.69,156.67,45.0]
[1724694745630,6.3827,156.68,156.63,15.9609]
[1724694746141,15.9516,156.73,156.63,15.9609]
[1724694746142,6.382,156.69,156.63,15.9609]
[1724694746337,6.3816,156.7,156.65,6.3836]
[1724694746838,6.3816,156.7,156.66,45.0]
[1724694747217,6.3821,156.69,156.66,45.0]
[1724694747424,6.3821,156.69,156.64,6.384]
[1724694748728,6.3821,156.69,156.65,45.0]
[1724694748910,6.3816,156.7,156.65,52.65916491]
[1724694749528,6.3811,156.72,156.67,6.3827]
[1724694749729,21.2097,156.74,156.68,45.0]
[1724694749930,20.0,156.73,156.64,15.9597]
[1724694750135,15.9529,156.72,156.61,31.9246]
[1724694750333,15.9529,156.72,156.59,6.67054029]
[1724694750334,6.3845,156.63,156.59,6.67054029]
[1724694750517,6.3845,156.63,156.58,6.3863]
[1724694750719,6.3841,156.64,156.59,6.386]
[1724694751040,15.9566,156.68,156.57,15.967]
[1724694751338,6.3853,156.61,156.56,6.3872]
[1724694752363,6.386,156.6,156.54,22.3579]
[1724694752527,6.3863,156.59,156.54,22.3579]
[1724694753034,6.3857,156.6,156.54,22.3579]
[1724694753959,20.0256,156.63,156.56,6.3871]
[1724694754116,20.0256,156.63,156.57,15.9672]
[1724694754427,20.0256,156.63,156.59,6.386]
[1724694754635,20.0256,156.63,156.6,45.0]
[1724694754842,20.0256,156.63,156.59,45.0]
[1724694755428,20.0256,156.63,156.59,51.3858]
[1724694755842,20.0256,156.63,156.59,45.0]
[1724694756559,6.3837,156.65,156.6,6.3854]
[1724694756746,28.2681,156.69,156.61,45.0]
[1724694757047,6.3824,156.68,156.61,45.0]
[1724694757259,28.2681,156.69,156.64,6.384]
[1724694757459,28.2681,156.69,156.62,17.23745641]
[1724694757757,34.6504,156.69,156.63,51.3843]
[1724694757924,20.0,156.68,156.63,51.3843]
[1724694758127,26.3825,156.68,156.63,51.3843]
[1724694758831,15.9506,156.74,156.63,51.3843]
[1724694758832,6.381,156.72,156.67,6.3826]
[1724694759027,6.381,156.72,156.68,45.0]
[1724694759345,8.2425,156.74,156.66,15.9573]
[1724694759545,8.2425,156.74,156.57,39.08549866]
[1724694759850,24.193,156.74,156.63,22.3451]
[1724694760059,6.3823,156.69,156.64,45.0]
[1724694760359,8.2425,156.74,156.64,45.0]
[1724694760529,51.9024,156.73,156.64,45.0]
[1724694760730,51.9024,156.73,156.59,15.9644]
[1724694761069,51.9024,156.73,156.6,45.0]
[1724694761070,15.9551,156.69,156.6,45.0]
[1724694761228,20.0,156.68,156.59,15.9644]
[1724694761427,6.3841,156.64,156.59,22.3504]
[1724694762245,6.3836,156.65,156.6,6.3856]
[1724694762443,20.0,156.68,156.59,15.9644]
[1724694762665,6.3849,156.62,156.57,6.3869]
[1724694763352,6.3843,156.64,156.59,6.386]
[1724694764358,6.3845,156.63,156.58,6.3863]
[1724694764533,6.3845,156.63,156.59,45.0]
[1724694765931,6.3845,156.63,156.59,51.386]
[1724694766446,6.3845,156.63,156.59,45.0]
[1724694766627,6.3849,156.62,156.59,45.0]
[1724694766937,6.3853,156.61,156.58,45.0]
[1724694767139,6.3853,156.61,156.56,22.3551]
[1724694767534,7.914,156.63,156.53,22.63354305]
[1724694767736,20.0,156.62,156.54,6.3881]
[1724694768046,6.3864,156.59,156.54,6.3881]
[1724694769327,6.3865,156.58,156.53,22.3593]
[1724694769535,6.387,156.57,156.53,15.9708]
[1724694769750,6.387,156.57,156.52,6.3889]
[1724694770435,6.387,156.57,156.53,6.3885]
[1724694770631,6.3866,156.58,156.53,6.3885]
[1724694770843,6.3866,156.58,156.54,45.0]
[1724694771034,6.3866,156.58,156.54,23.5064]
[1724694771235,6.3866,156.58,156.47,0.57714857]
[1724694771236,6.3915,156.46,156.4,7.2137549]
[1724694771462,15.9726,156.52,156.41,6.3934]
[1724694771649,6.3906,156.48,156.4,0.8200549]
[1724694771974,6.3898,156.5,156.43,6.3925]
[1724694772262,6.3893,156.52,156.42,15.9823]
[1724694772553,6.3893,156.52,156.46,6.3914]
[1724694773343,6.3895,156.51,156.45,15.9795]
[1724694773541,6.39,156.5,156.45,15.9795]
[1724694774232,6.3893,156.51,156.45,15.9795]
[1724694774432,6.3893,156.51,156.45,22.3712]
[1724694774740,6.3898,156.5,156.45,15.9795]
[1724694776065,6.3915,156.46,156.41,15.9826]
[1724694776256,6.3915,156.46,156.4,7.2138549]
[1724694776257,6.3914,156.46,156.4,7.2138549]
[1724694776764,6.3914,156.46,156.41,6.3933]
[1724694776958,6.3914,156.46,156.4,0.8200549]
[1724694777365,6.3914,156.46,156.4,7.2135549]
[1724694777597,6.3914,156.46,156.4,0.8200549]
[1724694778464,6.3914,156.46,156.41,6.3933]
[1724694779165,6.3906,156.48,156.42,6.3928]
[1724694779359,20.0,156.47,156.4,0.8200549]
[1724694779709,32.51824857,156.54,156.41,28.3715]
[1724694779710,0.57714857,156.54,156.41,28.3715]
[1724694779891,3.22208602,156.77,156.41,28.3715]
[1724694779892,20.8406,156.98,156.74,6.3799]
[1724694780203,40.8406,156.98,156.78,15.9458]
[1724694780364,20.0,156.94,156.78,15.9458]
[1724694780563,20.0,156.96,156.79,6.3777]
[1724694780788,20.0,156.94,156.79,6.3777]
[1724694780997,6.3737,156.9,156.79,6.3777]
[1724694781302,35.9301,156.94,156.78,22.3239]
[1724694781587,20.0,156.94,156.78,15.9458]
[1724694782184,20.0,156.94,156.82,6.3765]
[1724694782386,20.0,156.94,156.8,6.3773]
[1724694782766,20.0,156.91,156.78,15.9458]
[1724694783076,16.7491549,156.95,156.78,15.9458]
[1724694783077,20.0,156.93,156.78,15.9458]
[1724694784268,20.0,156.91,156.78,15.9458]
[1724694784471,20.0,156.89,156.75,6.3793]
[1724694784664,16.7491549,156.95,156.73,15.9504]
[1724694784665,20.0,156.87,156.73,15.9504]
[1724694784872,6.3774,156.81,156.73,15.9504]
[1724694785389,6.3774,156.81,156.73,22.3305]
[1724694785792,6.3766,156.83,156.73,22.3305]
[1724694785996,6.3766,156.83,156.74,6.3798]
[1724694786178,6.3757,156.85,156.73,15.9504]
[1724694786377,20.0,156.84,156.77,15.9468]
[1724694786582,6.3741,156.89,156.78,0.93677811]
[1724694786882,6.3748,156.87,156.8,6.3773]
[1724694787075,6.3748,156.87,156.78,6.3781]
[1724694787275,6.3748,156.87,156.79,6.3778]
[1724694787482,20.0,156.89,156.75,6.3792]
[1724694787996,20.0,156.87,156.73,15.9508]
[1724694788175,6.3769,156.82,156.73,22.331]
[1724694788574,6.3772,156.81,156.73,22.331]
[1724694788883,20.0,156.85,156.71,6.3809]
[1724694789079,65.0,156.84,156.71,6.3809]
[1724694789279,6.3778,156.8,156.71,6.3809]
[1724694789492,20.0,156.79,156.7,6.3814]
[1724694789995,6.3797,156.75,156.67,6.3825]
[1724694790184,40.0,156.79,156.55,40.8442]
[1724694790185,6.3817,156.7,156.55,20.8442]
[1724694790368,20.0,156.77,156.61,15.963]
[1724694790568,6.3807,156.73,156.6,46.92889616]
[1724694790777,15.9461,156.78,156.6,56.35417257]
[1724694790969,6.38,156.74,156.64,15.9593]
[1724694791165,20.0,156.73,156.67,15.956]
[1724694791379,20.0,156.73,156.6,9.42527641]
[1724694791589,6.3813,156.71,156.62,15.9612]
[1724694791781,20.0,156.73,156.62,15.9612]
[1724694791782,6.3817,156.7,156.62,15.9612]
[1724694792383,6.381,156.72,156.62,15.9612]
[1724694792585,20.0,156.73,156.66,6.3829]
[1724694792899,26.3807,156.73,156.65,22.3419]
[1724694793268,6.382,156.69,156.6,15.9636]
[1724694793471,6.382,156.69,156.62,6.3847]
[1724694794695,6.3827,156.68,156.6,15.9636]
[1724694795009,6.3841,156.64,156.58,6.3864]
[1724694795176,6.3835,156.66,156.59,6.386]
[1724694795373,6.3836,156.65,156.59,6.386]
[1724694795577,6.3836,156.65,156.58,6.3863]
[1724694795774,6.3836,156.66,156.56,15.9677]
[1724694795975,6.3836,156.65,156.58,6.3861]
[1724694796174,6.3836,156.65,156.59,6.386]
[1724694796369,6.3836,156.65,156.56,15.9677]
[1724694796582,6.3841,156.64,156.57,6.3865]
[1724694796917,6.3849,156.62,156.56,22.3549]
[1724694797194,6.3846,156.63,156.56,22.3549]
[1724694797571,35.9556,156.69,156.56,22.3549]
[1724694797784,6.3844,156.63,156.56,22.3549]
[1724694797983,20.0,156.68,156.58,6.3865]
[1724694798186,20.0,156.68,156.59,7.65734424]
[1724694798587,6.3833,156.66,156.6,6.3856]
[1724694799878,381.3,156.69,156.62,15.9618]
[1724694800070,6.3824,156.68,156.62,15.9618]
[1724694800292,381.3,156.69,156.66,6.3831]
[1724694800607,381.3,156.76,156.65,15.9588]
[1724694800817,8.1304,156.77,156.67,6.3827]
[1724694801093,6.3804,156.73,156.67,6.3827]
[1724694801298,8.1304,156.77,156.65,15.9588]
[1724694801299,6.38,156.74,156.68,7.65736066]
[1724694801609,6.38,156.74,156.68,22.3377]
[1724694801818,6.38,156.74,156.69,1.27503546]
[1724694802197,8.1304,156.77,156.66,6.3828]
[1724694802379,6.3808,156.72,156.67,6.3827]
[1724694802574,6.3813,156.71,156.65,6.3833]
[1724694802886,20.0,156.76,156.6,15.9636]
[1724694803203,15.9519,156.73,156.6,15.9636]
[1724694803391,45.0,156.72,156.6,15.9636]
[1724694803582,45.0,156.72,156.61,6.3852]
[1724694803785,6.3832,156.67,156.62,6.3848]
[1724694803997,6.3824,156.68,156.62,7.66024301]